Body Name,Body,Transaction Date,Value,Supplier,Description,Purchase Type,Cost Center,Department,Section
Chorley Borough Council,http://Statistics.Data.gov.uk/id/local-Authority/30UE,13/01/2020,10.99,Elzo Technology- Amazon,3 in 1 stylus gel pen combo with 4 replaceable disc tips and 2 replacement fibre tips for touch screen,Online Purchase,4512,Early Intervention,Housing Solutions & Public Pro
Chorley Borough Council,http://Statistics.Data.gov.uk/id/local-Authority/30UE,13/01/2020,13.99,Max Tech- Amazon,iPad protective case with hand strap,Online Purchase,4512,Early Intervention,Housing Solutions & Public Pro
Chorley Borough Council,http://Statistics.Data.gov.uk/id/local-Authority/30UE,17/01/2020,14.98,Elzo Technology,"Elzo 3 in 1 capacitive disc stylus gel pen combo 2 pcs, 4 replacement Disc tips + 2 replacement fiber tips inc del.",Online Purchase,4512,Early Intervention,Housing Solutions & Public Pro
Chorley Borough Council,http://Statistics.Data.gov.uk/id/local-Authority/30UE,28/01/2020,19.00,Shutterstock,365 day Subscription,Online Purchase,4301,Early Intervention,Housing Solutions & Public Pro
Chorley Borough Council,http://Statistics.Data.gov.uk/id/local-Authority/30UE,03/02/2020,55.10,Avanti Train,train tickets for NAME REDACTED - attending seminar,Travel,5915,Early Intervention,Housing Solutions & Public Pro
Chorley Borough Council,http://Statistics.Data.gov.uk/id/local-Authority/30UE,05/02/2020,65.15,Avanti Train,Train tickets for NAME REDACTED- attending seminar,Travel,4600,Early Intervention,Housing Solutions & Public Pro
Chorley Borough Council,http://Statistics.Data.gov.uk/id/local-Authority/30UE,07/02/2020,21.59,Bargain Hardware,HP NC523SFP Dual Port- 10 GbE,Online Purchase,4512,Early Intervention,Housing Solutions & Public Pro
Chorley Borough Council,http://Statistics.Data.gov.uk/id/local-Authority/30UE,07/02/2020,41.88,Posturite,Circular desk raisers inc. shipping,Online Purchase,5920,Early Intervention,Housing Solutions & Public Pro
Chorley Borough Council,http://Statistics.Data.gov.uk/id/local-Authority/30UE,21/02/2020,145.30,Avanti Train,Train tickets for NAMES REDACTED - attending course,Travel,4310,Early Intervention,Housing Solutions & Public Pro
Chorley Borough Council,http://Statistics.Data.gov.uk/id/local-Authority/30UE,26/02/2020,19.00,Shutterstock,Annual Shutterstock subscription -monthly payment,Online Purchase,4301,Early Intervention,Housing Solutions & Public Pro
Chorley Borough Council,http://Statistics.Data.gov.uk/id/local-Authority/30UE,26/02/2020,129.50,Amazon,Intel Ethernet Converged Network Adapter,Online Purchase,4512,Early Intervention,Housing Solutions & Public Pro
Chorley Borough Council,http://Statistics.Data.gov.uk/id/local-Authority/30UE,02/03/2020,179.97,Argos,Nikon Binoculars x 3 (enforcement),Store Purchase,4315,Early Intervention,Housing Solutions & Public Pro
Chorley Borough Council,http://Statistics.Data.gov.uk/id/local-Authority/30UE,26/03/2020,119.99,Homescapes,Smart Parcel Delivery Box,Online Purchase,5314,Early Intervention,Housing Solutions & Public Pro
Chorley Borough Council,http://Statistics.Data.gov.uk/id/local-Authority/30UE,31/01/2020,12.00,HM Courts,Payment for 24 liability orders.,Court Fees,4310,Customer & Digital,Customer Services
Chorley Borough Council,http://Statistics.Data.gov.uk/id/local-Authority/30UE,18/02/2020,8.50,HM Courts,Payment for liability orders for unpaid business rates.,Court Fees,4310,Customer & Digital,Customer Services
Chorley Borough Council,http://Statistics.Data.gov.uk/id/local-Authority/30UE,17/03/2020,7.00,H M Courts,Payment for 14 liability orders for a hearing date of 23.04.2020.,Court Fees,4310,Customer & Digital,Customer Services
Chorley Borough Council,http://Statistics.Data.gov.uk/id/local-Authority/30UE,27/01/2020,166.50,HM Courts,Payment for 333 Liability Orders - Hearing 20th Feb 2020,Court Fees,4310,Customer & Digital,Customer Services
Chorley Borough Council,http://Statistics.Data.gov.uk/id/local-Authority/30UE,14/02/2020,112.50,HM Courts,112.50 for 225 liability orders - hearing 19th Mar 20,Court Fees,4310,Customer & Digital,Customer Services
Chorley Borough Council,http://Statistics.Data.gov.uk/id/local-Authority/30UE,20/01/2020,5.60,Halfords,Twin USB phone charger,Store Purchase,4736,Customer & Digital,Streetscene
Chorley Borough Council,http://Statistics.Data.gov.uk/id/local-Authority/30UE,27/01/2020,124.34,Cornthwaite Group,Bucket Blade strip for the Kubota tractor front loader,Store Purchase,4736,Customer & Digital,Streetscene
Chorley Borough Council,http://Statistics.Data.gov.uk/id/local-Authority/30UE,25/02/2020,143.00,Pearson VUE,CIWM/WAMITAB Continuing Competence Test English-UK for NAME REDACTED,Online Purchase,4736,Customer & Digital,Streetscene
Chorley Borough Council,http://Statistics.Data.gov.uk/id/local-Authority/30UE,09/03/2020,43.42,Ace Decor Ltd,Combi colour original gloss 1 x sky blue and 1 x light yellow Acrylic primer undercoat,Store Purchase,4755,Customer & Digital,Streetscene
Chorley Borough Council,http://Statistics.Data.gov.uk/id/local-Authority/30UE,07/01/2020,262.50,DVLA,NU08KOJ vehicle tax,Road Tax,4736,Customer & Digital,Streetscene
Chorley Borough Council,http://Statistics.Data.gov.uk/id/local-Authority/30UE,05/02/2020,262.50,DVLA,PO15 VHE vehicle tax,Road Tax,4736,Customer & Digital,Streetscene
Chorley Borough Council,http://Statistics.Data.gov.uk/id/local-Authority/30UE,05/02/2020,262.50,DVLA,PO15 VHF vehicle tax,Road Tax,4736,Customer & Digital,Streetscene
Chorley Borough Council,http://Statistics.Data.gov.uk/id/local-Authority/30UE,05/02/2020,262.50,DVLA,PO15 VFZ vehicle tax,Road Tax,4736,Customer & Digital,Streetscene
Chorley Borough Council,http://Statistics.Data.gov.uk/id/local-Authority/30UE,05/02/2020,262.50,DVLA,PN15YWB vehicle tax,Road Tax,4736,Customer & Digital,Streetscene
Chorley Borough Council,http://Statistics.Data.gov.uk/id/local-Authority/30UE,05/02/2020,262.50,DVLA,PO15 VHD vehicle tax,Road Tax,4736,Customer & Digital,Streetscene
Chorley Borough Council,http://Statistics.Data.gov.uk/id/local-Authority/30UE,01/01/2020,"1,793.18",Amazon AWS,Amazon AWS January 2020,Online Purchase,4512,Customer & Digital,ICT
Chorley Borough Council,http://Statistics.Data.gov.uk/id/local-Authority/30UE,19/01/2020,"1,767.30",Microsoft Azure,Msft Azure 18/12/19 - 17/01/20,Online Purchase,4512,Customer & Digital,ICT
Chorley Borough Council,http://Statistics.Data.gov.uk/id/local-Authority/30UE,01/02/2020,89.44,Microsoft,Microsoft Azure support,Online Purchase,4512,Customer & Digital,ICT
Chorley Borough Council,http://Statistics.Data.gov.uk/id/local-Authority/30UE,19/02/2020,"1,798.40",Microsoft Azure,Msft Azure 18/01/20-17/02/20,Online Purchase,4512,Customer & Digital,ICT
Chorley Borough Council,http://Statistics.Data.gov.uk/id/local-Authority/30UE,01/03/2020,89.44,Microsoft Azure,Microsoft Azure support - March,Online Purchase,4512,Customer & Digital,ICT
Chorley Borough Council,http://Statistics.Data.gov.uk/id/local-Authority/30UE,13/03/2020,114.50,HM Courts,liability orders for hearing 23.4.20 229 paid 114.50,Court Fees,4310,Customer & Digital,Customer Services
Chorley Borough Council,http://Statistics.Data.gov.uk/id/local-Authority/30UE,05/01/2020,388.30,Linked In,Job adverts,Online Purchase,4400,Chief Executive,Office of Chief Executive
Chorley Borough Council,http://Statistics.Data.gov.uk/id/local-Authority/30UE,08/01/2020,110.00,HM Courts,Interim Charging Order,Online Purchase,4310,Chief Executive,Office of Chief Executive
Chorley Borough Council,http://Statistics.Data.gov.uk/id/local-Authority/30UE,21/01/2020,57.60,Thomson Reuters,JCT On Demand SCWa/E 2016,Online Purchase,4100,Chief Executive,Office of Chief Executive
Chorley Borough Council,http://Statistics.Data.gov.uk/id/local-Authority/30UE,22/01/2020,395.88,Linked In,Job advertisements,Online Purchase,4400,Chief Executive,Office of Chief Executive
Chorley Borough Council,http://Statistics.Data.gov.uk/id/local-Authority/30UE,03/02/2020,125.27,Facebook,Chorley Council Campaigns,Online Purchase,4301,Chief Executive,Office of Chief Executive
Chorley Borough Council,http://Statistics.Data.gov.uk/id/local-Authority/30UE,04/02/2020,240.00,Able Skips,Skip hire for Astley Hall,Online Purchase,5244,Chief Executive,Office of Chief Executive
Chorley Borough Council,http://Statistics.Data.gov.uk/id/local-Authority/30UE,05/02/2020,9.25,Booths,Items for the Mayor`s Ball (part 1),Store Purchase,4321,Chief Executive,Office of Chief Executive
Chorley Borough Council,http://Statistics.Data.gov.uk/id/local-Authority/30UE,05/02/2020,10.55,Booths,Items for the Mayor`s,Store Purchase,4321,Chief Executive,Office of Chief Executive
Chorley Borough Council,http://Statistics.Data.gov.uk/id/local-Authority/30UE,05/02/2020,82.95,Clintons,Items for the Mayor`s Ball,Store Purchase,4321,Chief Executive,Office of Chief Executive
Chorley Borough Council,http://Statistics.Data.gov.uk/id/local-Authority/30UE,05/02/2020,124.34,Tesco,Items for the Mayor`s Ball,Store Purchase,4321,Chief Executive,Office of Chief Executive
Chorley Borough Council,http://Statistics.Data.gov.uk/id/local-Authority/30UE,06/02/2020,33.42,Amazon,Items for hampers (Mayor`s Ball),Online Purchase,4321,Chief Executive,Office of Chief Executive
Chorley Borough Council,http://Statistics.Data.gov.uk/id/local-Authority/30UE,09/02/2020,27.71,Ionos,Domain renewal,Online Purchase,5314,Chief Executive,Office of Chief Executive
Chorley Borough Council,http://Statistics.Data.gov.uk/id/local-Authority/30UE,11/02/2020,60.00,LinkedIn,Sponsored updates website visits,Online Purchase,4301,Chief Executive,Office of Chief Executive
Chorley Borough Council,http://Statistics.Data.gov.uk/id/local-Authority/30UE,13/02/2020,124.09,TFS Chorley,Items for Mayor`s Ball,Store Purchase,4321,Chief Executive,Office of Chief Executive
Chorley Borough Council,http://Statistics.Data.gov.uk/id/local-Authority/30UE,21/02/2020,237.02,LinkedIn,Job advertisements,Online Purchase,4400,Chief Executive,Office of Chief Executive
Chorley Borough Council,http://Statistics.Data.gov.uk/id/local-Authority/30UE,23/02/2020,50.00,Facebook,Strawberry Fields Competition,Online Purchase,4301,Chief Executive,Office of Chief Executive
Chorley Borough Council,http://Statistics.Data.gov.uk/id/local-Authority/30UE,25/02/2020,11.50,BnQ,Moulded mask Fold hat,Store Purchase,4333,Chief Executive,Office of Chief Executive
Chorley Borough Council,http://Statistics.Data.gov.uk/id/local-Authority/30UE,25/02/2020,27.38,UK Wristbands,Premium wristbands,Online Purchase,4336,Chief Executive,Office of Chief Executive
Chorley Borough Council,http://Statistics.Data.gov.uk/id/local-Authority/30UE,26/02/2020,25.00,Malcolm`s Musicland,Making It Happen Awards - Vouchers,Store Purchase,5400,Chief Executive,Office of Chief Executive
Chorley Borough Council,http://Statistics.Data.gov.uk/id/local-Authority/30UE,26/02/2020,25.00,CEX,Making It Happen Awards - Vouchers,Store Purchase,5400,Chief Executive,Office of Chief Executive
Chorley Borough Council,http://Statistics.Data.gov.uk/id/local-Authority/30UE,26/02/2020,50.00,Tapas Esteban,Making It Happen Awards - Vouchers,Store Purchase,5400,Chief Executive,Office of Chief Executive
Chorley Borough Council,http://Statistics.Data.gov.uk/id/local-Authority/30UE,26/02/2020,50.00,Asda,Making It Happen Awards - Vouchers,Store Purchase,5400,Chief Executive,Office of Chief Executive
Chorley Borough Council,http://Statistics.Data.gov.uk/id/local-Authority/30UE,26/02/2020,50.00,Argos,Making It Happen Awards - Voucher,Store Purchase,5400,Chief Executive,Office of Chief Executive
Chorley Borough Council,http://Statistics.Data.gov.uk/id/local-Authority/30UE,26/02/2020,120.00,Calico,Making It Happen Award Vouchers,Store Purchase,5400,Chief Executive,Office of Chief Executive
Chorley Borough Council,http://Statistics.Data.gov.uk/id/local-Authority/30UE,26/02/2020,130.00,MnS,Making It Happen Award vouchers,Store Purchase,5400,Chief Executive,Office of Chief Executive
Chorley Borough Council,http://Statistics.Data.gov.uk/id/local-Authority/30UE,27/02/2020,43.14,PDC,Multi rigid open face card - holder,Online Purchase,5425,Chief Executive,Office of Chief Executive
Chorley Borough Council,http://Statistics.Data.gov.uk/id/local-Authority/30UE,28/02/2020,769.76,Bunzl,Cleaning products,Online Purchase,4333,Chief Executive,Office of Chief Executive
Chorley Borough Council,http://Statistics.Data.gov.uk/id/local-Authority/30UE,02/03/2020,13.00,Chorley Interchange Ltd,Payment for Chorley Interchange Ltd,Online Purchase,4707,Chief Executive,Office of Chief Executive
Chorley Borough Council,http://Statistics.Data.gov.uk/id/local-Authority/30UE,04/03/2020,25.00,Asda,Making It Happen Awards Voucher,Store Purchase,5400,Chief Executive,Office of Chief Executive
Chorley Borough Council,http://Statistics.Data.gov.uk/id/local-Authority/30UE,04/03/2020,25.00,New Look,Making It Happen Awards Voucher,Store Purchase,5400,Chief Executive,Office of Chief Executive
Chorley Borough Council,http://Statistics.Data.gov.uk/id/local-Authority/30UE,06/03/2020,25.00,Tapas Esteban,Making It Happen Awards,Store Purchase,5400,Chief Executive,Office of Chief Executive
Chorley Borough Council,http://Statistics.Data.gov.uk/id/local-Authority/30UE,06/03/2020,50.00,Asda,Making It Happen Awards,Store Purchase,5400,Chief Executive,Office of Chief Executive
Chorley Borough Council,http://Statistics.Data.gov.uk/id/local-Authority/30UE,09/03/2020,240.00,Able Skips,Skip needed for Astley Hall,Online Purchase,5425,Chief Executive,Office of Chief Executive
Chorley Borough Council,http://Statistics.Data.gov.uk/id/local-Authority/30UE,12/03/2020,5.99,Card Factory,Gifts for the stakeholders,Store Purchase,4400,Chief Executive,Office of Chief Executive
Chorley Borough Council,http://Statistics.Data.gov.uk/id/local-Authority/30UE,12/03/2020,19.70,MnS,Gifts for the stakeholders,Store Purchase,4400,Chief Executive,Office of Chief Executive
Chorley Borough Council,http://Statistics.Data.gov.uk/id/local-Authority/30UE,12/03/2020,36.97,BnM,Biscuits,Store Purchase,5400,Chief Executive,Office of Chief Executive
Chorley Borough Council,http://Statistics.Data.gov.uk/id/local-Authority/30UE,13/03/2020,-685.97,Bunzl Cleaning Supplies,Cleaning products refund,Refund,4333,Chief Executive,Office of Chief Executive
Chorley Borough Council,http://Statistics.Data.gov.uk/id/local-Authority/30UE,13/03/2020,188.80,Linked In,Job advertisements,Online Purchase,4400,Chief Executive,Office of Chief Executive
Chorley Borough Council,http://Statistics.Data.gov.uk/id/local-Authority/30UE,16/03/2020,206.28,Eureka Direct,Cleaning supplies,Online Purchase,4333,Chief Executive,Office of Chief Executive
Chorley Borough Council,http://Statistics.Data.gov.uk/id/local-Authority/30UE,17/03/2020,84.99,Argos,External Hard Drive,Store Purchase,4301,Chief Executive,Office of Chief Executive
Chorley Borough Council,http://Statistics.Data.gov.uk/id/local-Authority/30UE,17/03/2020,84.99,Argos,Portable Hard Drive,Online Purchase,4301,Chief Executive,Office of Chief Executive
Chorley Borough Council,http://Statistics.Data.gov.uk/id/local-Authority/30UE,17/03/2020,360.00,Dropbox,NAME REDACTED - working from home,Online Purchase,4301,Chief Executive,Office of Chief Executive
Chorley Borough Council,http://Statistics.Data.gov.uk/id/local-Authority/30UE,19/03/2020,-240.00,Able Skips,Skip Hire Refund,Refund,5425,Chief Executive,Office of Chief Executive
